Workbook

Sheet Notas de Disciplina Financiera
A1: JUNTA MUNICIPAL DE AGUA POTABLE Y SANEAMIENTO DE SAN LUIS DE LA PAZ | C1: Ejercicio: | D1: 2024
A2: Notas de Disciplina Financiera | C2: Periodicidad: | D2: Trimestral
A3: Correspondiente del 01 DE ENERO 2025 al 30 DE SEPTIEMBRE DE 2025 | C3: Corte: | D3: 1
A4: (Cifras en Pesos)
A5: NOTAS | B5: DESCRIPCIÓN
B7: NOTAS DE DISCIPLINA FINANCIERA:
A9: NDF-01 | B9: 1. Balance Presupuestario de Recursos Disponibles Negativo
A10: NDF-02 | B10: 2. Aumento o creación de nuevo Gasto
A11: NDF-03 | B11: 3. Pasivo Circulante al Cierre del Ejercicio (ESF-12)
A12: NDF-04 | B12: 4. Deuda Pública y Obligaciones
A13: NDF-05 | B13: 5. Obligaciones a Corto Plazo
A14: NDF-06 | B14: 6. Evaluación de Cumplimiento

Sheet NDF-01
B1: JUNTA MUNICIPAL DE AGUA POTABLE Y SANEAMIENTO DE SAN LUIS DE LA PAZ | E1: Ejercicio: | F1: ='Notas de Disciplina Financiera'!D1 -> 2024
B2: Notas de Disciplina Financiera | E2: Periodicidad: | F2: ='Notas de Disciplina Financiera'!D2 -> Trimestral
B3: Correspondiente del 01 DE ENERO 2025 al 30 DE SEPTIEMBRE DE 2025 | E3: Corte: | F3: ='Notas de Disciplina Financiera'!D3 -> 1
C5: 1. Balance Presupuestario de Recursos Disponibles Negativo
B7: Se informará:
B8: a) Acciones para recuperar el Balance Presupuestario de Recursos Disponibles Sostenible.
C16: Favor de ver el instructivo de esta nota (NDF-01):
C17: En caso de no obtener un Balance Presupuestario de Recursos Disponibles Negativo, indicar la aclaración.

Sheet NDF-02
B1: JUNTA MUNICIPAL DE AGUA POTABLE Y SANEAMIENTO DE SAN LUIS DE LA PAZ | E1: Ejercicio: | F1: ='Notas de Disciplina Financiera'!D1 -> 2024
B2: Notas de Disciplina Financiera | E2: Periodicidad: | F2: ='Notas de Disciplina Financiera'!D2 -> Trimestral
B3: Correspondiente del 01 DE ENERO 2025 al 30 DE SEPTIEMBRE DE 2025 | E3: Corte: | F3: ='Notas de Disciplina Financiera'!D3 -> 1
B5: 2. Aumento o creación de nuevo Gasto:
B6: JUNTA MUNICIPAL DE AGUA POTABLE Y SANEAMIENTO DE SAN LUIS DE LA PAZ
B7: Art. 8 LDF
B8: Clasificación por Objeto del Gasto (Capítulo y Concepto)
B9: Correspondiente del 01 DE ENERO 2025 al 30 DE SEPTIEMBRE DE 2025
B10: (PESOS)
D11: Modificaciones
B12: Concepto (c) | C12: Aprobado (d) | D12: Ampliaciones Líquidas | E12: Reducciones Líquidas | F12: Ampliaciones Compensadas | G12: Reducciones Compensadas | H12: Total | I12: Modificado
B13: I. Gasto No Etiquetado (I=A+B+C+D+E+F+G+H+I) | C13: =SUM(C14,C22,C32,C42,C52,C62,C66,C74,C78) -> 81,588,318.38 | D13: =SUM(D14,D22,D32,D42,D52,D62,D66,D74,D78) -> 0.00 | E13: 0.00 | F13: 0.00 | G13: 0.00 | H13: =D13-E13+F13-G13 -> 0.00 | I13: =SUM(I14,I22,I32,I42,I52,I62,I66,I74,I78) -> 81,588,318.38
B14: A. Servicios Personales (A=a1+a2+a3+a4+a5+a6+a7) | C14: =SUM(C15:C21) -> 36,356,087.32 | D14: =SUM(D15:D21) -> 30,000.00 | E14: 0.00 | F14: 0.00 | G14: 0.00 | H14: 30,000.00 | I14: =SUM(I15:I21) -> 36,386,087.32
B15: a1) Remuneraciones al Personal de Carácter Permanente | C15: 20,934,958.72 | D15: -947,589.68 | E15: 0.00 | F15: 0.00 | G15: 0.00 | H15: -947,589.68 | I15: 19,987,369.04
B16: a2) Remuneraciones al Personal de Carácter Transitorio | C16: 1,912,589.34 | D16: 947,589.68 | E16: 0.00 | F16: 0.00 | G16: 0.00 | H16: 947,589.68 | I16: 2,860,179.02
B17: a3) Remuneraciones Adicionales y Especiales | C17: 3,475,362.69 | D17: 30,000.00 | E17: 0.00 | F17: 0.00 | G17: 0.00 | H17: 30,000.00 | I17: 3,505,362.69
B18: a4) Seguridad Social | C18: 6,743,614.29 | D18: 0.00 | E18: 0.00 | F18: 0.00 | G18: 0.00 | H18: 0.00 | I18: 6,743,614.29
B19: a5) Otras Prestaciones Sociales y Económicas | C19: 1,729,562.28 | D19: 0.00 | E19: 0.00 | F19: 0.00 | G19: 0.00 | H19: 0.00 | I19: 1,729,562.28
B20: a6) Previsiones | C20: 0.00 | D20: 0.00 | E20: 0.00 | F20: 0.00 | G20: 0.00 | H20: 0.00 | I20: 0.00
B21: a7) Pago de Estímulos a Servidores Públicos | C21: 1,560,000.00 | D21: 0.00 | E21: 0.00 | F21: 0.00 | G21: 0.00 | H21: 0.00 | I21: 1,560,000.00
B22: B. Materiales y Suministros (B=b1+b2+b3+b4+b5+b6+b7+b8+b9) | C22: =SUM(C23:C31) -> 13,763,532.31 | D22: =SUM(D23:D31) -> -900,460.10 | E22: 0.00 | F22: 0.00 | G22: 0.00 | H22: -900,460.10 | I22: =SUM(I23:I31) -> 12,863,072.21
B23: b1) Materiales de Administración, Emisión de Documentos y Artículos Oficiales | C23: 241,988.86 | D23: 110,015.58 | E23: 0.00 | F23: 0.00 | G23: 0.00 | H23: 110,015.58 | I23: 352,004.44
B24: b2) Alimentos y Utensilios | C24: 28,080.00 | D24: 0.00 | E24: 0.00 | F24: 0.00 | G24: 0.00 | H24: 0.00 | I24: 28,080.00
B25: b3) Materias Primas y Materiales de Producción y Comercialización | C25: 169,081.12 | D25: -20,000.00 | E25: 0.00 | F25: 0.00 | G25: 0.00 | H25: -20,000.00 | I25: 149,081.12
B26: b4) Materiales y Artículos de Construcción y de Reparación | C26: 3,909,885.10 | D26: -751,880.01 | E26: 0.00 | F26: 0.00 | G26: 0.00 | H26: -751,880.01 | I26: 3,158,005.09
B27: b5) Productos Químicos, Farmacéuticos y de Laboratorio | C27: 5,604,828.77 | D27: -113,595.67 | E27: 0.00 | F27: 0.00 | G27: 0.00 | H27: -113,595.67 | I27: 5,491,233.10
B28: b6) Combustibles, Lubricantes y Aditivos | C28: 2,852,304.00 | D28: -300,000.00 | E28: 0.00 | F28: 0.00 | G28: 0.00 | H28: -300,000.00 | I28: 2,552,304.00
B29: b7) Vestuario, Blancos, Prendas de Protección y Artículos Deportivos | C29: 840,192.00 | D29: 165,000.00 | E29: 0.00 | F29: 0.00 | G29: 0.00 | H29: 165,000.00 | I29: 1,005,192.00
B30: b8) Materiales y Suministros Para Seguridad | C30: 0.00 | D30: 0.00 | E30: 0.00 | F30: 0.00 | G30: 0.00 | H30: 0.00 | I30: 0.00
B31: b9) Herramientas, Refacciones y Accesorios Menores | C31: 117,172.46 | D31: 10,000.00 | E31: 0.00 | F31: 0.00 | G31: 0.00 | H31: 10,000.00 | I31: 127,172.46
B32: C. Servicios Generales (C=c1+c2+c3+c4+c5+c6+c7+c8+c9) | C32: =SUM(C33:C41) -> 23,007,148.55 | D32: =SUM(D33:D41) -> 1,363,172.90 | E32: 0.00 | F32: 0.00 | G32: 0.00 | H32: 1,363,172.90 | I32: =SUM(I33:I41) -> 24,370,321.45
B33: c1) Servicios Básicos | C33: 10,654,539.34 | D33: 2,427,400.00 | E33: 0.00 | F33: 0.00 | G33: 0.00 | H33: 2,427,400.00 | I33: 13,081,939.34
B34: c2) Servicios de Arrendamiento | C34: 769,472.00 | D34: -77,400.00 | E34: 0.00 | F34: 0.00 | G34: 0.00 | H34: -77,400.00 | I34: 692,072.00
B35: c3) Servicios Profesionales, Científicos, Técnicos y Otros Servicios | C35: 2,601,731.30 | D35: -1,000,420.56 | E35: 0.00 | F35: 0.00 | G35: 0.00 | H35: -1,000,420.56 | I35: 1,601,310.74
B36: c4) Servicios Financieros, Bancarios y Comerciales | C36: 378,160.00 | D36: -70,000.00 | E36: 0.00 | F36: 0.00 | G36: 0.00 | H36: -70,000.00 | I36: 308,160.00
B37: c5) Servicios de Instalación, Reparación, Mantenimiento y Conservación | C37: 3,557,994.63 | D37: 254,992.75 | E37: 0.00 | F37: 0.00 | G37: 0.00 | H37: 254,992.75 | I37: 3,812,987.38
B38: c6) Servicios de Comunicación Social y Publicidad | C38: 173,056.00 | D38: -51,399.29 | E38: 0.00 | F38: 0.00 | G38: 0.00 | H38: -51,399.29 | I38: 121,656.71
B39: c7) Servicios de Traslado y Viáticos | C39: 58,406.40 | D39: 0.00 | E39: 0.00 | F39: 0.00 | G39: 0.00 | H39: 0.00 | I39: 58,406.40
B40: c8) Servicios Oficiales | C40: 427,232.00 | D40: 30,000.00 | E40: 0.00 | F40: 0.00 | G40: 0.00 | H40: 30,000.00 | I40: 457,232.00
B41: c9) Otros Servicios Generales | C41: 4,386,556.88 | D41: -150,000.00 | E41: 0.00 | F41: 0.00 | G41: 0.00 | H41: -150,000.00 | I41: 4,236,556.88
B42: D. Transferencias, Asignaciones, Subsidios y Otras Ayudas (D=d1+d2+d3+d4+d5+d6+d7+d8+d9) | C42: =SUM(C43:C51) -> 646,496.24 | D42: =SUM(D43:D51) -> 65,000.00 | E42: 0.00 | F42: 0.00 | G42: 0.00 | H42: 65,000.00 | I42: =SUM(I43:I51) -> 711,496.24
B43: d1) Transferencias Internas y Asignaciones al Sector Público | C43: 0.00 | D43: 0.00 | E43: 0.00 | F43: 0.00 | G43: 0.00 | H43: 0.00 | I43: 0.00
B44: d2) Transferencias al Resto del Sector Público | C44: 0.00 | D44: 0.00 | E44: 0.00 | F44: 0.00 | G44: 0.00 | H44: 0.00 | I44: 0.00
B45: d3) Subsidios y Subvenciones | C45: 0.00 | D45: 0.00 | E45: 0.00 | F45: 0.00 | G45: 0.00 | H45: =D45-E45+F45-G45 -> 0.00 | I45: 0.00
B46: d4) Ayudas Sociales | C46: 624,000.00 | D46: 65,000.00 | E46: 0.00 | F46: 0.00 | G46: 0.00 | H46: 65,000.00 | I46: 689,000.00
B47: d5) Pensiones y Jubilaciones | C47: 22,496.24 | D47: 0.00 | E47: 0.00 | F47: 0.00 | G47: 0.00 | H47: 0.00 | I47: 22,496.24
B48: d6) Transferencias a Fideicomisos, Mandatos y Otros Análogos | C48: 0.00 | D48: 0.00 | E48: 0.00 | F48: 0.00 | G48: 0.00 | H48: 0.00 | I48: 0.00
B49: d7) Transferencias a la Seguridad Social | C49: 0.00 | D49: 0.00 | E49: 0.00 | F49: 0.00 | G49: 0.00 | H49: 0.00 | I49: 0.00
B50: d8) Donativos | C50: 0.00 | D50: 0.00 | E50: 0.00 | F50: 0.00 | G50: 0.00 | H50: 0.00 | I50: 0.00
B51: d9) Transferencias al Exterior | C51: 0.00 | D51: 0.00 | E51: 0.00 | F51: 0.00 | G51: 0.00 | H51: 0.00 | I51: 0.00
B52: E. Bienes Muebles, Inmuebles e Intangibles (E=e1+e2+e3+e4+e5+e6+e7+e8+e9) | C52: =SUM(C53:C61) -> 4,315,053.96 | D52: =SUM(D53:D61) -> 442,287.20 | E52: 0.00 | F52: 0.00 | G52: 0.00 | H52: 442,287.20 | I52: =SUM(I53:I61) -> 4,757,341.16
B53: e1) Mobiliario y Equipo de Administración | C53: 313,081.93 | D53: 108,480.00 | E53: 0.00 | F53: 0.00 | G53: 0.00 | H53: 108,480.00 | I53: 421,561.93
B54: e2) Mobiliario y Equipo Educacional y Recreativo | C54: 0.00 | D54: 0.00 | E54: 0.00 | F54: 0.00 | G54: 0.00 | H54: 0.00 | I54: 0.00
B55: e3) Equipo e Instrumental Médico y de Laboratorio | C55: 0.00 | D55: 0.00 | E55: 0.00 | F55: 0.00 | G55: 0.00 | H55: 0.00 | I55: 0.00
B56: e4) Vehículos y Equipo de Transporte | C56: 83,200.00 | D56: 0.00 | E56: 0.00 | F56: 0.00 | G56: 0.00 | H56: 0.00 | I56: 83,200.00
B57: e5) Equipo de Defensa y Seguridad | C57: 0.00 | D57: 0.00 | E57: 0.00 | F57: 0.00 | G57: 0.00 | H57: 0.00 | I57: 0.00
B58: e6) Maquinaria, Otros Equipos y Herramientas | C58: 2,937,760.83 | D58: -166,192.80 | E58: 0.00 | F58: 0.00 | G58: 0.00 | H58: -166,192.80 | I58: 2,771,568.03
B59: e7) Activos Biológicos | C59: 0.00 | D59: 0.00 | E59: 0.00 | F59: 0.00 | G59: 0.00 | H59: 0.00 | I59: 0.00
B60: e8) Bienes Inmuebles | C60: 0.00 | D60: 0.00 | E60: 0.00 | F60: 0.00 | G60: 0.00 | H60: 0.00 | I60: 0.00
B61: e9) Activos Intangibles | C61: 981,011.20 | D61: 500,000.00 | E61: 0.00 | F61: 0.00 | G61: 0.00 | H61: 500,000.00 | I61: 1,481,011.20
B62: F. Inversión Pública (F=f1+f2+f3) | C62: =SUM(C63:C65) -> 3,500,000.00 | D62: =SUM(D63:D65) -> -1,000,000.00 | E62: 0.00 | F62: 0.00 | G62: 0.00 | H62: -1,000,000.00 | I62: =SUM(I63:I65) -> 2,500,000.00
B63: f1) Obra Pública en Bienes de Dominio Público | C63: 2,500,000.00 | D63: -1,000,000.00 | E63: 0.00 | F63: 0.00 | G63: 0.00 | H63: -1,000,000.00 | I63: 1,500,000.00
B64: f2) Obra Pública en Bienes Propios | C64: 1,000,000.00 | D64: 0.00 | E64: 0.00 | F64: 0.00 | G64: 0.00 | H64: 0.00 | I64: 1,000,000.00
B65: f3) Proyectos Productivos y Acciones de Fomento | C65: 0.00 | D65: 0.00 | E65: 0.00 | F65: 0.00 | G65: 0.00 | H65: 0.00 | I65: 0.00
B66: G. Inversiones Financieras y Otras Provisiones (G=g1+g2+g3+g4+g5+g6+g7) | C66: =SUM(C67:C71,C72:C73) -> 0.00 | D66: =SUM(D67:D71,D72:D73) -> 0.00 | E66: 0.00 | F66: 0.00 | G66: 0.00 | H66: 0.00 | I66: =SUM(I67:I71,I72:I73) -> 0.00
B67: g1) Inversiones Para el Fomento de Actividades Productivas | C67: 0.00 | D67: 0.00 | E67: 0.00 | F67: 0.00 | G67: 0.00 | H67: 0.00 | I67: 0.00
B68: g2) Acciones y Participaciones de Capital | C68: 0.00 | D68: 0.00 | E68: 0.00 | F68: 0.00 | G68: 0.00 | H68: 0.00 | I68: 0.00
B69: g3) Compra de Títulos y Valores | C69: 0.00 | D69: 0.00 | E69: 0.00 | F69: 0.00 | G69: 0.00 | H69: 0.00 | I69: 0.00
B70: g4) Concesión de Préstamos | C70: 0.00 | D70: 0.00 | E70: 0.00 | F70: 0.00 | G70: 0.00 | H70: 0.00 | I70: 0.00
B71: g5) Inversiones en Fideicomisos, Mandatos y Otros Análogos | C71: 0.00 | D71: 0.00 | E71: 0.00 | F71: 0.00 | G71: 0.00 | H71: 0.00 | I71: 0.00
B72: g6) Otras Inversiones Financieras | C72: 0.00 | D72: 0.00 | E72: 0.00 | F72: 0.00 | G72: 0.00 | H72: 0.00 | I72: 0.00
B73: g7) Provisiones para Contingencias y Otras Erogaciones Especiales | C73: 0.00 | D73: 0.00 | E73: 0.00 | F73: 0.00 | G73: 0.00 | H73: 0.00 | I73: 0.00
B74: H. Participaciones y Aportaciones (H=h1+h2+h3) | C74: =SUM(C75:C77) -> 0.00 | D74: =SUM(D75:D77) -> 0.00 | E74: 0.00 | F74: 0.00 | G74: 0.00 | H74: 0.00 | I74: =SUM(I75:I77) -> 0.00
B75: h1) Participaciones | C75: 0.00 | D75: 0.00 | E75: 0.00 | F75: 0.00 | G75: 0.00 | H75: 0.00 | I75: 0.00
B76: h2) Aportaciones | C76: 0.00 | D76: 0.00 | E76: 0.00 | F76: 0.00 | G76: 0.00 | H76: 0.00 | I76: 0.00
B77: h3) Convenios | C77: 0.00 | D77: 0.00 | E77: 0.00 | F77: 0.00 | G77: 0.00 | H77: =D77-E77+F77-G77 -> 0.00 | I77: 0.00
B78: I. Deuda Pública (I=i1+i2+i3+i4+i5+i6+i7) | C78: =SUM(C79:C85) -> 0.00 | D78: =SUM(D79:D85) -> 0.00 | E78: 0.00 | F78: 0.00 | G78: 0.00 | H78: 0.00 | I78: =SUM(I79:I85) -> 0.00
B79: i1) Amortización de la Deuda Pública | C79: 0.00 | D79: 0.00 | E79: 0.00 | F79: 0.00 | G79: 0.00 | H79: 0.00 | I79: 0.00
B80: i2) Intereses de la Deuda Pública | C80: 0.00 | D80: 0.00 | E80: 0.00 | F80: 0.00 | G80: 0.00 | H80: 0.00 | I80: 0.00
B81: i3) Comisiones de la Deuda Pública | C81: 0.00 | D81: 0.00 | E81: 0.00 | F81: 0.00 | G81: 0.00 | H81: 0.00 | I81: 0.00
B82: i4) Gastos de la Deuda Pública | C82: 0.00 | D82: 0.00 | E82: 0.00 | F82: 0.00 | G82: 0.00 | H82: 0.00 | I82: 0.00
B83: i5) Costo por Coberturas | C83: 0.00 | D83: 0.00 | E83: 0.00 | F83: 0.00 | G83: 0.00 | H83: 0.00 | I83: 0.00
B84: i6) Apoyos Financieros | C84: 0.00 | D84: 0.00 | E84: 0.00 | F84: 0.00 | G84: 0.00 | H84: 0.00 | I84: 0.00
B85: i7) Adeudos de Ejercicios Fiscales Anteriores (ADEFAS) | C85: 0.00 | D85: 0.00 | H85: 0.00 | I85: 0.00
B87: II. Gasto Etiquetado (II=A+B+C+D+E+F+G+H+I) | C87: =C88+C96+C106+C116+C126+C136+C140+C148+C152 -> 0.00 | D87: 0.00 | E87: 0.00 | F87: 0.00 | G87: 0.00 | H87: 0.00 | I87: 0.00
B88: A. Servicios Personales (A=a1+a2+a3+a4+a5+a6+a7) | C88: =SUM(C89:C95) -> 0.00 | D88: 0.00 | E88: 0.00 | F88: 0.00 | G88: 0.00 | H88: 0.00 | I88: 0.00
B89: a1) Remuneraciones al Personal de Carácter Permanente | C89: 0.00 | D89: 0.00 | E89: 0.00 | F89: 0.00 | G89: 0.00 | H89: =D89-E89+F89-G89 -> 0.00 | I89: 0.00
B90: a2) Remuneraciones al Personal de Carácter Transitorio | C90: 0.00 | D90: 0.00 | E90: 0.00 | F90: 0.00 | G90: 0.00 | H90: 0.00 | I90: 0.00
B91: a3) Remuneraciones Adicionales y Especiales | C91: 0.00 | D91: 0.00 | E91: 0.00 | F91: 0.00 | G91: 0.00 | H91: 0.00 | I91: 0.00
B92: a4) Seguridad Social | C92: 0.00 | D92: 0.00 | E92: 0.00 | F92: 0.00 | G92: 0.00 | H92: 0.00 | I92: 0.00
B93: a5) Otras Prestaciones Sociales y Económicas | C93: 0.00 | D93: 0.00 | E93: 0.00 | F93: 0.00 | G93: 0.00 | H93: 0.00 | I93: 0.00
B94: a6) Previsiones | C94: 0.00 | D94: 0.00 | E94: 0.00 | F94: 0.00 | G94: 0.00 | H94: 0.00 | I94: 0.00
B95: a7) Pago de Estímulos a Servidores Públicos | C95: 0.00 | D95: 0.00 | E95: 0.00 | F95: 0.00 | G95: 0.00 | H95: 0.00 | I95: 0.00
B96: B. Materiales y Suministros (B=b1+b2+b3+b4+b5+b6+b7+b8+b9) | C96: =SUM(C97:C105) -> 0.00 | D96: 0.00 | E96: 0.00 | F96: 0.00 | G96: 0.00 | H96: 0.00 | I96: 0.00
B97: b1) Materiales de Administración, Emisión de Documentos y Artículos Oficiales | C97: 0.00 | D97: 0.00 | E97: 0.00 | F97: 0.00 | G97: 0.00 | H97: =D97-E97+F97-G97 -> 0.00 | I97: 0.00
B98: b2) Alimentos y Utensilios | C98: 0.00 | D98: 0.00 | E98: 0.00 | F98: 0.00 | G98: 0.00 | H98: 0.00 | I98: 0.00
B99: b3) Materias Primas y Materiales de Producción y Comercialización | C99: 0.00 | D99: 0.00 | E99: 0.00 | F99: 0.00 | G99: 0.00 | H99: 0.00 | I99: 0.00
B100: b4) Materiales y Artículos de Construcción y de Reparación | C100: 0.00 | D100: 0.00 | E100: 0.00 | F100: 0.00 | G100: 0.00 | H100: 0.00 | I100: 0.00
B101: b5) Productos Químicos, Farmacéuticos y de Laboratorio | C101: 0.00 | D101: 0.00 | E101: 0.00 | F101: 0.00 | G101: 0.00 | H101: 0.00 | I101: 0.00
B102: b6) Combustibles, Lubricantes y Aditivos | C102: 0.00 | D102: 0.00 | E102: 0.00 | F102: 0.00 | G102: 0.00 | H102: 0.00 | I102: 0.00
B103: b7) Vestuario, Blancos, Prendas de Protección y Artículos Deportivos | C103: 0.00 | D103: 0.00 | E103: 0.00 | F103: 0.00 | G103: 0.00 | H103: 0.00 | I103: 0.00
B104: b8) Materiales y Suministros Para Seguridad | C104: 0.00 | D104: 0.00 | E104: 0.00 | F104: 0.00 | G104: 0.00 | H104: 0.00 | I104: 0.00
B105: b9) Herramientas, Refacciones y Accesorios Menores | C105: 0.00 | D105: 0.00 | E105: 0.00 | F105: 0.00 | G105: 0.00 | H105: 0.00 | I105: 0.00
B106: C. Servicios Generales (C=c1+c2+c3+c4+c5+c6+c7+c8+c9) | C106: =SUM(C107:C115) -> 0.00 | D106: 0.00 | E106: 0.00 | F106: 0.00 | G106: 0.00 | H106: 0.00 | I106: 0.00
B107: c1) Servicios Básicos | C107: 0.00 | D107: 0.00 | E107: 0.00 | F107: 0.00 | G107: 0.00 | H107: =D107-E107+F107-G107 -> 0.00 | I107: 0.00
B108: c2) Servicios de Arrendamiento | C108: 0.00 | D108: 0.00 | E108: 0.00 | F108: 0.00 | G108: 0.00 | H108: 0.00 | I108: 0.00
B109: c3) Servicios Profesionales, Científicos, Técnicos y Otros Servicios | C109: 0.00 | D109: 0.00 | E109: 0.00 | F109: 0.00 | G109: 0.00 | H109: 0.00 | I109: 0.00
B110: c4) Servicios Financieros, Bancarios y Comerciales | C110: 0.00 | D110: 0.00 | E110: 0.00 | F110: 0.00 | G110: 0.00 | H110: 0.00 | I110: 0.00
B111: c5) Servicios de Instalación, Reparación, Mantenimiento y Conservación | C111: 0.00 | D111: 0.00 | E111: 0.00 | F111: 0.00 | G111: 0.00 | H111: 0.00 | I111: 0.00
B112: c6) Servicios de Comunicación Social y Publicidad | C112: 0.00 | D112: 0.00 | E112: 0.00 | F112: 0.00 | G112: 0.00 | H112: 0.00 | I112: 0.00
B113: c7) Servicios de Traslado y Viáticos | C113: 0.00 | D113: 0.00 | E113: 0.00 | F113: 0.00 | G113: 0.00 | H113: 0.00 | I113: 0.00
B114: c8) Servicios Oficiales | C114: 0.00 | D114: 0.00 | E114: 0.00 | F114: 0.00 | G114: 0.00 | H114: 0.00 | I114: 0.00
B115: c9) Otros Servicios Generales | C115: 0.00 | D115: 0.00 | E115: 0.00 | F115: 0.00 | G115: 0.00 | H115: 0.00 | I115: 0.00
B116: D. Transferencias, Asignaciones, Subsidios y Otras Ayudas (D=d1+d2+d3+d4+d5+d6+d7+d8+d9) | C116: =SUM(C117:C125) -> 0.00 | D116: 0.00 | E116: 0.00 | F116: 0.00 | G116: 0.00 | H116: 0.00 | I116: 0.00
B117: d1) Transferencias Internas y Asignaciones al Sector Público | C117: 0.00 | D117: 0.00 | E117: 0.00 | F117: 0.00 | G117: 0.00 | H117: =D117-E117+F117-G117 -> 0.00 | I117: 0.00
B118: d2) Transferencias al Resto del Sector Público | C118: 0.00 | D118: 0.00 | E118: 0.00 | F118: 0.00 | G118: 0.00 | H118: 0.00 | I118: 0.00
B119: d3) Subsidios y Subvenciones | C119: 0.00 | D119: 0.00 | E119: 0.00 | F119: 0.00 | G119: 0.00 | H119: 0.00 | I119: 0.00
B120: d4) Ayudas Sociales | C120: 0.00 | D120: 0.00 | E120: 0.00 | F120: 0.00 | G120: 0.00 | H120: 0.00 | I120: 0.00
B121: d5) Pensiones y Jubilaciones | C121: 0.00 | D121: 0.00 | E121: 0.00 | F121: 0.00 | G121: 0.00 | H121: 0.00 | I121: 0.00
B122: d6) Transferencias a Fideicomisos, Mandatos y Otros Análogos | C122: 0.00 | D122: 0.00 | E122: 0.00 | F122: 0.00 | G122: 0.00 | H122: 0.00 | I122: 0.00
B123: d7) Transferencias a la Seguridad Social | C123: 0.00 | D123: 0.00 | E123: 0.00 | F123: 0.00 | G123: 0.00 | H123: 0.00 | I123: 0.00
B124: d8) Donativos | C124: 0.00 | D124: 0.00 | E124: 0.00 | F124: 0.00 | G124: 0.00 | H124: 0.00 | I124: 0.00
B125: d9) Transferencias al Exterior | C125: 0.00 | D125: 0.00 | E125: 0.00 | F125: 0.00 | G125: 0.00 | H125: 0.00 | I125: 0.00
B126: E. Bienes Muebles, Inmuebles e Intangibles (E=e1+e2+e3+e4+e5+e6+e7+e8+e9) | C126: =SUM(C127:C135) -> 0.00 | D126: 0.00 | E126: 0.00 | F126: 0.00 | G126: 0.00 | H126: 0.00 | I126: 0.00
B127: e1) Mobiliario y Equipo de Administración | C127: 0.00 | D127: 0.00 | E127: 0.00 | F127: 0.00 | G127: 0.00 | H127: =D127-E127+F127-G127 -> 0.00 | I127: 0.00
B128: e2) Mobiliario y Equipo Educacional y Recreativo | C128: 0.00 | D128: 0.00 | E128: 0.00 | F128: 0.00 | G128: 0.00 | H128: 0.00 | I128: 0.00
B129: e3) Equipo e Instrumental Médico y de Laboratorio | C129: 0.00 | D129: 0.00 | E129: 0.00 | F129: 0.00 | G129: 0.00 | H129: 0.00 | I129: 0.00
B130: e4) Vehículos y Equipo de Transporte | C130: 0.00 | D130: 0.00 | E130: 0.00 | F130: 0.00 | G130: 0.00 | H130: 0.00 | I130: 0.00
B131: e5) Equipo de Defensa y Seguridad | C131: 0.00 | D131: 0.00 | E131: 0.00 | F131: 0.00 | G131: 0.00 | H131: 0.00 | I131: 0.00
B132: e6) Maquinaria, Otros Equipos y Herramientas | C132: 0.00 | D132: 0.00 | E132: 0.00 | F132: 0.00 | G132: 0.00 | H132: 0.00 | I132: 0.00
B133: e7) Activos Biológicos | C133: 0.00 | D133: 0.00 | E133: 0.00 | F133: 0.00 | G133: 0.00 | H133: 0.00 | I133: 0.00
B134: e8) Bienes Inmuebles | C134: 0.00 | D134: 0.00 | E134: 0.00 | F134: 0.00 | G134: 0.00 | H134: 0.00 | I134: 0.00
B135: e9) Activos Intangibles | C135: 0.00 | D135: 0.00 | E135: 0.00 | F135: 0.00 | G135: 0.00 | H135: 0.00 | I135: 0.00
B136: F. Inversión Pública (F=f1+f2+f3) | C136: =SUM(C137:C139) -> 0.00 | D136: 0.00 | E136: 0.00 | F136: 0.00 | G136: 0.00 | H136: 0.00 | I136: 0.00
B137: f1) Obra Pública en Bienes de Dominio Público | C137: 0.00 | D137: 0.00 | E137: 0.00 | F137: 0.00 | G137: 0.00 | H137: =D137-E137+F137-G137 -> 0.00 | I137: 0.00
B138: f2) Obra Pública en Bienes Propios | C138: 0.00 | D138: 0.00 | E138: 0.00 | F138: 0.00 | G138: 0.00 | H138: =D138-E138+F138-G138 -> 0.00 | I138: 0.00
B139: f3) Proyectos Productivos y Acciones de Fomento | C139: 0.00 | D139: 0.00 | E139: 0.00 | F139: 0.00 | G139: 0.00 | H139: =D139-E139+F139-G139 -> 0.00 | I139: 0.00
B140: G. Inversiones Financieras y Otras Provisiones (G=g1+g2+g3+g4+g5+g6+g7) | C140: =SUM(C141:C147) -> 0.00 | D140: 0.00 | E140: 0.00 | F140: 0.00 | G140: 0.00 | H140: 0.00 | I140: 0.00
B141: g1) Inversiones Para el Fomento de Actividades Productivas | C141: 0.00 | D141: 0.00 | E141: 0.00 | F141: 0.00 | G141: 0.00 | H141: =D141-E141+F141-G141 -> 0.00 | I141: 0.00
B142: g2) Acciones y Participaciones de Capital | C142: 0.00 | D142: 0.00 | E142: 0.00 | F142: 0.00 | G142: 0.00 | H142: 0.00 | I142: 0.00
B143: g3) Compra de Títulos y Valores | C143: 0.00 | D143: 0.00 | E143: 0.00 | F143: 0.00 | G143: 0.00 | H143: 0.00 | I143: 0.00
B144: g4) Concesión de Préstamos | C144: 0.00 | D144: 0.00 | E144: 0.00 | F144: 0.00 | G144: 0.00 | H144: 0.00 | I144: 0.00
B145: g5) Inversiones en Fideicomisos, Mandatos y Otros Análogos | C145: 0.00 | D145: 0.00 | E145: 0.00 | F145: 0.00 | G145: 0.00 | H145: 0.00 | I145: 0.00
B146: g6) Otras Inversiones Financieras | C146: 0.00 | D146: 0.00 | E146: 0.00 | F146: 0.00 | G146: 0.00 | H146: 0.00 | I146: 0.00
B147: g7) Provisiones para Contingencias y Otras Erogaciones Especiales | C147: 0.00 | D147: 0.00 | E147: 0.00 | F147: 0.00 | G147: 0.00 | H147: 0.00 | I147: 0.00
B148: H. Participaciones y Aportaciones (H=h1+h2+h3) | C148: =SUM(C149:C151) -> 0.00 | D148: 0.00 | E148: 0.00 | F148: 0.00 | G148: 0.00 | H148: 0.00 | I148: 0.00
B149: h1) Participaciones | C149: 0.00 | D149: 0.00 | E149: 0.00 | F149: 0.00 | G149: 0.00 | H149: =D149-E149+F149-G149 -> 0.00 | I149: 0.00
B150: h2) Aportaciones | C150: 0.00 | D150: 0.00 | E150: 0.00 | F150: 0.00 | G150: 0.00 | H150: =D150-E150+F150-G150 -> 0.00 | I150: 0.00
B151: h3) Convenios | C151: 0.00 | D151: 0.00 | E151: 0.00 | F151: 0.00 | G151: 0.00 | H151: =D151-E151+F151-G151 -> 0.00 | I151: 0.00
B152: I. Deuda Pública (I=i1+i2+i3+i4+i5+i6+i7) | C152: =SUM(C153:C159) -> 0.00 | D152: 0.00 | E152: 0.00 | F152: 0.00 | G152: 0.00 | H152: 0.00 | I152: 0.00
B153: i1) Amortización de la Deuda Pública | C153: 0.00 | D153: 0.00 | E153: 0.00 | F153: 0.00 | G153: 0.00 | H153: =D153-E153+F153-G153 -> 0.00 | I153: 0.00
B154: i2) Intereses de la Deuda Pública | C154: 0.00 | D154: 0.00 | E154: 0.00 | F154: 0.00 | G154: 0.00 | H154: 0.00 | I154: 0.00
B155: i3) Comisiones de la Deuda Pública | C155: 0.00 | D155: 0.00 | E155: 0.00 | F155: 0.00 | G155: 0.00 | H155: 0.00 | I155: 0.00
B156: i4) Gastos de la Deuda Pública | C156: 0.00 | D156: 0.00 | E156: 0.00 | F156: 0.00 | G156: 0.00 | H156: 0.00 | I156: 0.00
B157: i5) Costo por Coberturas | C157: 0.00 | D157: 0.00 | E157: 0.00 | F157: 0.00 | G157: 0.00 | H157: 0.00 | I157: 0.00
B158: i6) Apoyos Financieros | C158: 0.00 | D158: 0.00 | E158: 0.00 | F158: 0.00 | G158: 0.00 | H158: 0.00 | I158: 0.00
B159: i7) Adeudos de Ejercicios Fiscales Anteriores (ADEFAS) | C159: 0.00 | D159: 0.00 | E159: 0.00 | F159: 0.00 | G159: 0.00 | H159: 0.00 | I159: 0.00
B161: III. Total de Egresos (III = I + II) | C161: =C13+C87 -> 81,588,318.38 | D161: 0.00 | E161: 0.00 | F161: 0.00 | G161: 0.00 | H161: 0.00 | I161: 81,588,318.38

Sheet NDF-03
B1: JUNTA MUNICIPAL DE AGUA POTABLE Y SANEAMIENTO DE SAN LUIS DE LA PAZ | E1: Ejercicio: | F1: ='Notas de Disciplina Financiera'!D1 -> 2024
B2: Notas de Disciplina Financiera | E2: Periodicidad: | F2: ='Notas de Disciplina Financiera'!D2 -> Trimestral
B3: Correspondiente del 01 DE ENERO 2025 al 30 DE SEPTIEMBRE DE 2025 | E3: Corte: | F3: ='Notas de Disciplina Financiera'!D3 -> 1
C5: 3. Pasivo Circulante al Cierre del Ejercicio (ESF-12):
B6: JUNTA MUNICIPAL DE AGUA POTABLE Y SANEAMIENTO DE SAN LUIS DE LA PAZ
B7: Informe de cuentas por pagar y que integran el pasivo circulante al cierre del ejercicio
B8: Ejercicio 20XN
B9: COG | C9: Concepto | D9: Devengado | E9: Pagado | F9: Cuentas por pagar
D10: (a) | E10: (b) | F10: (c) = (a-b)
C11: Gasto No Etiquetado | D11: =SUM(D12:D20) -> 49,962,418.09 | E11: =SUM(E12:E20) -> 49,656,930.28 | F11: =D11-E11 -> 305,487.81
B12: 1000 | C12: Servicios Personales | D12: 23,606,349.33 | E12: 23,479,059.72 | F12: 127,289.61
B13: 2000 | C13: Materiales y Suministros | D13: 7,860,742.67 | E13: 7,780,572.30 | F13: 80,170.37
B14: 3000 | C14: Servicios Generales | D14: 16,367,391.74 | E14: 16,270,848.91 | F14: 96,542.83
B15: 4000 | C15: Transferencias, Asignaciones, Subsidios y Otras Ayudas | D15: 383,572.27 | E15: 382,087.27 | F15: 1,485.00
B16: 5000 | C16: Bienes Muebles, Inmuebles e Intangibles | D16: 1,744,362.08 | E16: 1,744,362.08 | F16: 0.00
B17: 6000 | C17: Inversión Pública | D17: 0.00 | E17: 0.00 | F17: 0.00
B18: 7000 | C18: Inversiones Financieras y Otras Provisiones | D18: 0.00 | E18: 0.00 | F18: 0.00
B19: 8000 | C19: Participaciones y Aportaciones | D19: 0.00 | E19: 0.00 | F19: 0.00
B20: 9000 | C20: Deuda Pública | D20: 0.00 | E20: 0.00 | F20: 0.00
C21: Gasto Etiquetado | D21: =SUM(D22:D30) -> 0.00 | E21: =SUM(E22:E30) -> 0.00 | F21: 0.00
B22: 1000 | C22: Servicios Personales | D22: 0.00 | E22: 0.00 | F22: 0.00
B23: 2000 | C23: Materiales y Suministros | D23: 0.00 | E23: 0.00 | F23: 0.00
B24: 3000 | C24: Servicios Generales | D24: 0.00 | E24: 0.00 | F24: 0.00
B25: 4000 | C25: Transferencias, Asignaciones, Subsidios y Otras Ayudas | D25: 0.00 | E25: 0.00 | F25: 0.00
B26: 5000 | C26: Bienes Muebles, Inmuebles e Intangibles | D26: 0.00 | E26: 0.00 | F26: 0.00
B27: 6000 | C27: Inversión Pública | D27: 0.00 | E27: 0.00 | F27: 0.00
B28: 7000 | C28: Inversiones Financieras y Otras Provisiones | D28: 0.00 | E28: 0.00 | F28: 0.00
B29: 8000 | C29: Participaciones y Aportaciones | D29: 0.00 | E29: 0.00 | F29: 0.00
B30: 9000 | C30: Deuda Pública | D30: 0.00 | E30: 0.00 | F30: 0.00
C31: Total | D31: =D11+D21 -> 49,962,418.09 | E31: =E11+E21 -> 49,656,930.28 | F31: 305,487.81
C33: Favor de ver el instructivo de esta nota (NDF-03):
C34: En caso de no tener pasivos al cierre del ejercicio, hacer la aclaración o la inidcación.

Sheet NDF-04
B1: JUNTA MUNICIPAL DE AGUA POTABLE Y SANEAMIENTO DE SAN LUIS DE LA PAZ | E1: Ejercicio: | F1: ='Notas de Disciplina Financiera'!D1 -> 2024
B2: Notas de Disciplina Financiera | E2: Periodicidad: | F2: ='Notas de Disciplina Financiera'!D2 -> Trimestral
B3: Correspondiente del 01 DE ENERO 2025 al 30 DE SEPTIEMBRE DE 2025 | E3: Corte: | F3: ='Notas de Disciplina Financiera'!D3 -> 1
C5: 4. Deuda Pública y Obligaciones
B7: Se revelará:
B8: a) La información detallada de cada Financiamiento u Obligación contraída en los términos del Título Tercero Capítulo
B9: Uno de la Ley de Disciplina Financiera de las Entidades Federativas y Municipios, incluyendocomo mínimo,el importe,
B10: tasa, plazo, comisiones y demás accesorios pactados.
C13: Favor de ver el instructivo de esta nota (NDF-04):
C14: En caso de no contar deuda pública u obligaciones, hacer la aclaración o la inidcación.

Sheet NDF-05
B1: JUNTA MUNICIPAL DE AGUA POTABLE Y SANEAMIENTO DE SAN LUIS DE LA PAZ | E1: Ejercicio: | F1: ='Notas de Disciplina Financiera'!D1 -> 2024
B2: Notas de Disciplina Financiera | E2: Periodicidad: | F2: ='Notas de Disciplina Financiera'!D2 -> Trimestral
B3: Correspondiente del 01 DE ENERO 2025 al 30 DE SEPTIEMBRE DE 2025 | E3: Corte: | F3: ='Notas de Disciplina Financiera'!D3 -> 1
C5: 5. Obligaciones a Corto Plazo
B7: Se revelará:
B8: a) La información detallada de las Obligaciones a corto plazo contraídas en los términos del Título Tercero Capítulo Uno
B9: de la Ley de Disciplina Financiera de las Entidades Federativas y Municipios, incluyendo por lo menos importe, tasas,
B10: plazo, comisiones y cualquier costo relacionado, así mismo se deberá incluir la tasa efectiva.
C13: Favor de ver el instructivo de esta nota (NDF-05):
C14: En caso de no contar con Obligaciones a Corto Plazo, hacer la aclaración o la inidcación.

Sheet NDF-06
B1: JUNTA MUNICIPAL DE AGUA POTABLE Y SANEAMIENTO DE SAN LUIS DE LA PAZ | E1: Ejercicio: | F1: ='Notas de Disciplina Financiera'!D1 -> 2024
B2: Notas de Disciplina Financiera | E2: Periodicidad: | F2: ='Notas de Disciplina Financiera'!D2 -> Trimestral
B3: Correspondiente del 01 DE ENERO 2025 al 30 DE SEPTIEMBRE DE 2025 | E3: Corte: | F3: ='Notas de Disciplina Financiera'!D3 -> 1
C5: 6. Evaluación de Cumplimiento
B7: Se revelará:
B8: a) La información relativa al cumplimiento de los convenios de Deuda Garantizada.
